[Event "Late-Titled-Tuesday-Blitz-February-20-2024"]
[Site "Chess.com"]
[Date "2024.02.20"]
[Round "10"]
[White "Jospem"]
[Black "dedpihto_v_kozhanom_palto"]
[Result "1-0"]
[WhiteElo "3075"]
[BlackElo "2714"]
[TimeControl "180+1"]
[EndTime "15:53:30 PST"]
[Termination "Jospem won by checkmate"]

1. a4 {[%clk 0:02:58.2]} 1... g6 {[%clk 0:02:56.7]} 2. h3 {[%clk 0:02:59.1]}
2... Bg7 {[%clk 0:02:56.9]} 3. g3 {[%clk 0:02:59]} 3... e5 {[%clk 0:02:56.9]} 4.
Bg2 {[%clk 0:02:59.7]} 4... d5 {[%clk 0:02:56.4]} 5. d3 {[%clk 0:03:00.6]} 5...
f5 {[%clk 0:02:52.8]} 6. Nc3 {[%clk 0:03:01.3]} 6... Nf6 {[%clk 0:02:52.9]} 7.
e3 {[%clk 0:03:01.6]} 7... O-O {[%clk 0:02:53]} 8. Nf3 {[%clk 0:03:02.3]} 8...
e4 {[%clk 0:02:47.9]} 9. Nd4 {[%clk 0:03:01.6]} 9... c5 {[%clk 0:02:46.5]} 10.
Nb3 {[%clk 0:03:02.4]} 10... b6 {[%clk 0:02:40]} 11. O-O {[%clk 0:03:02.6]}
11... Bb7 {[%clk 0:02:34.4]} 12. a5 {[%clk 0:03:02.7]} 12... Nc6 {[%clk
0:02:29.6]} 13. a6 {[%clk 0:03:02.8]} 13... Bc8 {[%clk 0:02:29.9]} 14. d4 {[%clk
0:03:03.7]} 14... c4 {[%clk 0:02:24.7]} 15. Nd2 {[%clk 0:03:04]} 15... g5 {[%clk
0:02:24]} 16. b3 {[%clk 0:03:04.3]} 16... cxb3 {[%clk 0:02:18.2]} 17. Nxb3
{[%clk 0:03:05.2]} 17... Be6 {[%clk 0:02:15]} 18. Nb5 {[%clk 0:03:05.6]} 18...
Qd7 {[%clk 0:02:10]} 19. Ba3 {[%clk 0:03:05.7]} 19... f4 {[%clk 0:02:08.9]} 20.
exf4 {[%clk 0:03:03.4]} 20... gxf4 {[%clk 0:02:08.9]} 21. Bxf8 {[%clk
0:02:58.8]} 21... Rxf8 {[%clk 0:02:09.8]} 22. f3 {[%clk 0:02:49.5]} 22... fxg3
{[%clk 0:01:38.4]} 23. fxe4 {[%clk 0:02:48]} 23... dxe4 {[%clk 0:01:22.3]} 24.
Nc3 {[%clk 0:02:39.4]} 24... Bxh3 {[%clk 0:01:18.2]} 25. Qd2 {[%clk 0:02:27.8]}
25... Bxg2 {[%clk 0:01:17]} 26. Kxg2 {[%clk 0:02:27.1]} 26... Qg4 {[%clk
0:00:48.7]} 27. Qf4 {[%clk 0:02:21.2]} 27... Qh5 {[%clk 0:00:47.1]} 28. Qxg3
{[%clk 0:02:16.2]} 28... Kh8 {[%clk 0:00:41.9]} 29. Rf4 {[%clk 0:02:11.5]} 29...
Rg8 {[%clk 0:00:37.5]} 30. Rh1 {[%clk 0:02:11.8]} 30... Qe8 {[%clk 0:00:33.7]}
31. Kf1 {[%clk 0:02:03.5]} 31... Nh5 {[%clk 0:00:28.7]} 32. Qh4 {[%clk
0:02:03.4]} 32... Rf8 {[%clk 0:00:18.1]} 33. Rxf8+ {[%clk 0:02:01.5]} 33...
Qxf8+ {[%clk 0:00:19]} 34. Ke1 {[%clk 0:02:01.6]} 34... Nf6 {[%clk 0:00:09.8]}
35. Nd5 {[%clk 0:02:01.9]} 35... Qf7 {[%clk 0:00:07.2]} 36. Nxf6 {[%clk
0:02:02.3]} 36... Bxf6 {[%clk 0:00:08.1]} 37. Qh5 {[%clk 0:02:02.5]} 37... Qe7
{[%clk 0:00:07]} 38. c3 {[%clk 0:02:01.2]} 38... e3 {[%clk 0:00:07.1]} 39. Nc1
{[%clk 0:02:01.5]} 39... Qe4 {[%clk 0:00:07.2]} 40. Qh6 {[%clk 0:01:50.7]} 40...
Bg7 {[%clk 0:00:05.9]} 41. Qh3 {[%clk 0:01:50.3]} 41... Ne7 {[%clk 0:00:05.3]}
42. Rh2 {[%clk 0:01:47.1]} 42... Nf5 {[%clk 0:00:04.8]} 43. Qxh7# {[%clk
0:01:46.6]} 1-0

[Event "Late-Titled-Tuesday-Blitz-February-20-2024"]
[Site "Chess.com"]
[Date "2024.02.20"]
[Round "10"]
[White "GnowReopard"]
[Black "reevecanada"]
[Result "1-0"]
[WhiteElo "2828"]
[BlackElo "2628"]
[TimeControl "180+1"]
[EndTime "15:53:31 PST"]
[Termination "GnowReopard won by resignation"]

1. e4 {[%clk 0:03:00.9]} 1... c5 {[%clk 0:02:57.7]} 2. Ne2 {[%clk 0:03:00.9]}
2... Nc6 {[%clk 0:02:56.5]} 3. Nbc3 {[%clk 0:02:59]} 3... g6 {[%clk 0:02:55.6]}
4. d4 {[%clk 0:02:58.4]} 4... cxd4 {[%clk 0:02:55.1]} 5. Nxd4 {[%clk 0:02:59.3]}
5... Bg7 {[%clk 0:02:55.7]} 6. Be3 {[%clk 0:03:00]} 6... d6 {[%clk 0:02:55.7]}
7. Qd2 {[%clk 0:02:59.5]} 7... Nf6 {[%clk 0:02:56]} 8. f3 {[%clk 0:02:59.7]}
8... O-O {[%clk 0:02:56.5]} 9. Bc4 {[%clk 0:02:59.9]} 9... a6 {[%clk 0:02:56.5]}
10. O-O-O {[%clk 0:02:59.1]} 10... Qc7 {[%clk 0:02:57.1]} 11. Bb3 {[%clk
0:02:59]} 11... b5 {[%clk 0:02:57.5]} 12. Nxc6 {[%clk 0:02:54.7]} 12... Qxc6
{[%clk 0:02:52.5]} 13. Nd5 {[%clk 0:02:55.3]} 13... Qb7 {[%clk 0:02:15.4]} 14.
Bh6 {[%clk 0:02:45.1]} 14... Be6 {[%clk 0:01:39.5]} 15. Nxf6+ {[%clk 0:02:44.3]}
15... Bxf6 {[%clk 0:01:35.7]} 16. Bxf8 {[%clk 0:02:44]} 16... Kxf8 {[%clk
0:01:35.3]} 17. Bxe6 {[%clk 0:02:43.2]} 17... fxe6 {[%clk 0:01:31.6]} 18. Kb1
{[%clk 0:02:41.6]} 18... Kg7 {[%clk 0:01:29.7]} 19. h4 {[%clk 0:02:39.3]} 19...
h6 {[%clk 0:01:20.8]} 20. h5 {[%clk 0:02:38.5]} 20... g5 {[%clk 0:01:20.1]} 21.
Qe3 {[%clk 0:02:29.6]} 21... Be5 {[%clk 0:01:17.1]} 22. c3 {[%clk 0:02:25.5]}
22... Rf8 {[%clk 0:01:12.7]} 23. Rd3 {[%clk 0:02:24]} 23... a5 {[%clk
0:01:10.7]} 24. Rg1 {[%clk 0:02:09.7]} 24... Rc8 {[%clk 0:01:01.4]} 25. g3
{[%clk 0:02:07.6]} 25... b4 {[%clk 0:00:58.1]} 26. cxb4 {[%clk 0:02:07.5]} 26...
Qxb4 {[%clk 0:00:54]} 27. Qd2 {[%clk 0:02:02.8]} 27... Qb5 {[%clk 0:00:49.9]}
28. Rb3 {[%clk 0:01:53.7]} 28... Qc4 {[%clk 0:00:20.9]} 29. Rc1 {[%clk
0:01:50.2]} 29... Qxc1+ {[%clk 0:00:19.4]} 30. Qxc1 {[%clk 0:01:51.1]} 30...
Rxc1+ {[%clk 0:00:19.5]} 31. Kxc1 {[%clk 0:01:52]} 31... Bxg3 {[%clk 0:00:19.7]}
32. Ra3 {[%clk 0:01:49.8]} 32... Be1 {[%clk 0:00:19.3]} 33. Kd1 {[%clk
0:01:46.6]} 33... Bb4 {[%clk 0:00:19.7]} 34. Ra4 {[%clk 0:01:47.2]} 34... d5
{[%clk 0:00:15.3]} 35. a3 {[%clk 0:01:45.8]} 35... dxe4 {[%clk 0:00:13.5]} 36.
axb4 {[%clk 0:01:40.3]} 36... exf3 {[%clk 0:00:13.5]} 37. bxa5 {[%clk
0:01:40.8]} 37... Kf6 {[%clk 0:00:14]} 38. a6 {[%clk 0:01:40.3]} 38... Kf5
{[%clk 0:00:14.9]} 39. a7 {[%clk 0:01:40.4]} 39... g4 {[%clk 0:00:15.8]} 40.
a8=Q {[%clk 0:01:40.8]} 40... g3 {[%clk 0:00:16.7]} 41. Qxf3+ {[%clk 0:01:39.8]}
1-0

[Event "Late-Titled-Tuesday-Blitz-February-20-2024"]
[Site "Chess.com"]
[Date "2024.02.20"]
[Round "10"]
[White "pavet"]
[Black "Thjop"]
[Result "1/2-1/2"]
[WhiteElo "2737"]
[BlackElo "2620"]
[TimeControl "180+1"]
[EndTime "15:53:40 PST"]
[Termination "Game drawn by agreement"]

1. e4 {[%clk 0:03:00.9]} 1... e6 {[%clk 0:03:00.3]} 2. d4 {[%clk 0:03:01]} 2...
d5 {[%clk 0:03:01.2]} 3. Bd3 {[%clk 0:03:01.6]} 3... dxe4 {[%clk 0:03:00.4]} 4.
Bxe4 {[%clk 0:03:02]} 4... Nf6 {[%clk 0:03:01.3]} 5. Bf3 {[%clk 0:03:02.3]} 5...
c5 {[%clk 0:03:01.3]} 6. Ne2 {[%clk 0:03:02.6]} 6... Nc6 {[%clk 0:03:01.6]} 7.
Be3 {[%clk 0:03:00.7]} 7... cxd4 {[%clk 0:03:01.8]} 8. Nxd4 {[%clk 0:03:00.8]}
8... Ne5 {[%clk 0:03:02.2]} 9. Nc3 {[%clk 0:03:01.4]} 9... a6 {[%clk 0:02:54.8]}
10. Qe2 {[%clk 0:03:01.4]} 10... Nxf3+ {[%clk 0:02:52.1]} 11. Qxf3 {[%clk
0:03:00.8]} 11... Be7 {[%clk 0:02:50]} 12. O-O-O {[%clk 0:03:00.9]} 12... Qc7
{[%clk 0:02:46.8]} 13. Qg3 {[%clk 0:02:45.9]} 13... Qxg3 {[%clk 0:02:46.1]} 14.
hxg3 {[%clk 0:02:46.8]} 14... Bd7 {[%clk 0:02:42.9]} 15. f3 {[%clk 0:02:46.8]}
15... Rc8 {[%clk 0:02:38.7]} 16. g4 {[%clk 0:02:46.3]} 16... Bb4 {[%clk
0:02:30.1]} 17. g5 {[%clk 0:02:43.1]} 17... Bxc3 {[%clk 0:02:24]} 18. gxf6
{[%clk 0:02:43.3]} 18... Bxd4 {[%clk 0:02:24.2]} 19. Bxd4 {[%clk 0:02:43.8]}
19... g6 {[%clk 0:02:16.7]} 20. Rh6 {[%clk 0:02:38.9]} 20... Bc6 {[%clk
0:02:09.4]} 21. Rdh1 {[%clk 0:02:38.5]} 21... Bd5 {[%clk 0:02:08.9]} 22. Rxh7
{[%clk 0:02:37.5]} 22... Rxh7 {[%clk 0:02:09.8]} 23. Rxh7 {[%clk 0:02:37.5]}
23... Rc4 {[%clk 0:02:01.8]} 24. c3 {[%clk 0:02:33.8]} 24... Rc8 {[%clk
0:02:01.8]} 25. a3 {[%clk 0:02:30.2]} 25... b5 {[%clk 0:02:01.7]} 26. Kd2 {[%clk
0:02:30.1]} 26... a5 {[%clk 0:02:00.3]} 27. Ke3 {[%clk 0:02:30.1]} 27... a4
{[%clk 0:01:59.6]} 28. g4 {[%clk 0:02:28.8]} 28... Bc4 {[%clk 0:01:56.6]} 29.
Kf4 {[%clk 0:02:20.2]} 29... Bd5 {[%clk 0:01:56.2]} 30. Ke3 {[%clk 0:02:12.2]}
30... Bc4 {[%clk 0:01:56.2]} 31. f4 {[%clk 0:01:50.6]} 31... Bd5 {[%clk
0:01:52.5]} 32. Kf2 {[%clk 0:01:50.6]} 32... Bc4 {[%clk 0:01:48]} 33. Kg3 {[%clk
0:01:51]} 33... Bd5 {[%clk 0:01:45.6]} 34. Kh4 {[%clk 0:01:51.3]} 34... e5
{[%clk 0:01:43.2]} 35. Bxe5 {[%clk 0:01:49]} 35... Kd7 {[%clk 0:01:42.7]} 36.
Kg5 {[%clk 0:01:40.8]} 36... Be6 {[%clk 0:01:41.7]} 37. Rh2 {[%clk 0:01:40.2]}
37... Kc6 {[%clk 0:01:38.2]} 38. Rd2 {[%clk 0:01:40.2]} 38... Bd5 {[%clk
0:01:33]} 39. Kh6 {[%clk 0:01:39.8]} 39... Rd8 {[%clk 0:01:30.9]} 40. Kg7 {[%clk
0:01:38.7]} 40... Rd7 {[%clk 0:01:31.3]} 41. f5 {[%clk 0:01:20]} 41... gxf5
{[%clk 0:01:29.9]} 42. g5 {[%clk 0:01:20.3]} 42... f4 {[%clk 0:01:25.8]} 43.
Bxf4 {[%clk 0:01:19.7]} 43... Be6 {[%clk 0:01:21.4]} 44. Rxd7 {[%clk 0:01:14.3]}
44... Kxd7 {[%clk 0:01:22.3]} 45. g6 {[%clk 0:01:14.7]} 45... Ke8 {[%clk
0:01:22.8]} 46. gxf7+ {[%clk 0:01:11.9]} 46... Bxf7 {[%clk 0:01:23]} 47. Bd6
{[%clk 0:01:10.4]} 47... Be6 {[%clk 0:01:23.1]} 48. Be7 {[%clk 0:01:10.9]} 48...
Bf7 {[%clk 0:01:23]} 49. Bb4 {[%clk 0:01:10.4]} 49... Be6 {[%clk 0:01:23.1]} 50.
Kg6 {[%clk 0:01:11.1]} 50... Bf7+ {[%clk 0:01:20.8]} 51. Kf5 {[%clk 0:01:11.5]}
51... Bc4 {[%clk 0:01:20.9]} 52. Ke5 {[%clk 0:01:12.1]} 52... Kf7 {[%clk
0:01:21.2]} 53. Be7 {[%clk 0:01:12]} 53... Bb3 {[%clk 0:01:20.7]} 54. Kd6 {[%clk
0:01:12.1]} 54... Bc4 {[%clk 0:01:21.2]} 1/2-1/2

[Event "Late-Titled-Tuesday-Blitz-February-20-2024"]
[Site "Chess.com"]
[Date "2024.02.20"]
[Round "10"]
[White "abeljusto"]
[Black "SocoLoco"]
[Result "0-1"]
[WhiteElo "2087"]
[BlackElo "2207"]
[TimeControl "180+1"]
[EndTime "15:53:45 PST"]
[Termination "SocoLoco won by resignation"]

1. d4 {[%clk 0:03:00.9]} 1... d5 {[%clk 0:02:57.7]} 2. Bf4 {[%clk 0:03:00.1]}
2... Nc6 {[%clk 0:02:57.6]} 3. e3 {[%clk 0:02:59.1]} 3... Bf5 {[%clk 0:02:57.4]}
4. c4 {[%clk 0:02:54.4]} 4... e6 {[%clk 0:02:57]} 5. Nc3 {[%clk 0:02:53.8]} 5...
Nf6 {[%clk 0:02:56.3]} 6. Nf3 {[%clk 0:02:46.8]} 6... Be7 {[%clk 0:02:55.8]} 7.
h3 {[%clk 0:02:45.4]} 7... O-O {[%clk 0:02:55.1]} 8. Be2 {[%clk 0:02:40.2]} 8...
Re8 {[%clk 0:02:55]} 9. O-O {[%clk 0:02:38.3]} 9... Ne4 {[%clk 0:02:54.5]} 10.
Rc1 {[%clk 0:02:36.2]} 10... Bf8 {[%clk 0:02:44]} 11. cxd5 {[%clk 0:02:31.1]}
11... exd5 {[%clk 0:02:43]} 12. Qa4 {[%clk 0:02:20.2]} 12... a6 {[%clk
0:02:35.7]} 13. a3 {[%clk 0:01:55.2]} 13... h6 {[%clk 0:02:24.1]} 14. Qb3 {[%clk
0:01:45.8]} 14... Nxc3 {[%clk 0:02:19.2]} 15. Rxc3 {[%clk 0:01:44.5]} 15... Rb8
{[%clk 0:02:18]} 16. Rfc1 {[%clk 0:01:43.2]} 16... Bd6 {[%clk 0:02:11.2]} 17.
Bxd6 {[%clk 0:01:34.1]} 17... Qxd6 {[%clk 0:02:10.7]} 18. Qa2 {[%clk 0:01:18.1]}
18... Rbd8 {[%clk 0:01:53.1]} 19. b4 {[%clk 0:01:17.5]} 19... Be4 {[%clk
0:01:43.3]} 20. Nd2 {[%clk 0:01:13.8]} 20... Bf5 {[%clk 0:01:37.8]} 21. Bxa6
{[%clk 0:01:00.9]} 21... Nxd4 {[%clk 0:00:53.9]} 22. exd4 {[%clk 0:01:00.3]}
22... bxa6 {[%clk 0:00:53]} 23. Rxc7 {[%clk 0:00:59.9]} 23... Re2 {[%clk
0:00:52.4]} 24. R7c6 {[%clk 0:00:52.3]} 24... Qf4 {[%clk 0:00:50.6]} 0-1

[Event "Late-Titled-Tuesday-Blitz-February-20-2024"]
[Site "Chess.com"]
[Date "2024.02.20"]
[Round "10"]
[White "DarkAlekhine"]
[Black "mirciulica14"]
[Result "1-0"]
[WhiteElo "2854"]
[BlackElo "2655"]
[TimeControl "180+1"]
[EndTime "15:53:46 PST"]
[Termination "DarkAlekhine won by resignation"]

1. d4 {[%clk 0:03:00.9]} 1... g6 {[%clk 0:02:59.6]} 2. Bf4 {[%clk 0:03:01.1]}
2... Bg7 {[%clk 0:02:57.1]} 3. e3 {[%clk 0:03:01.4]} 3... d6 {[%clk 0:02:55.3]}
4. h3 {[%clk 0:03:01.9]} 4... e5 {[%clk 0:02:51.2]} 5. dxe5 {[%clk 0:02:59.4]}
5... dxe5 {[%clk 0:02:52.1]} 6. Qxd8+ {[%clk 0:02:59.4]} 6... Kxd8 {[%clk
0:02:53]} 7. Bh2 {[%clk 0:02:59.5]} 7... c6 {[%clk 0:02:43.8]} 8. Nf3 {[%clk
0:02:58.7]} 8... f6 {[%clk 0:02:42.9]} 9. Na3 {[%clk 0:02:59.3]} 9... Kc7 {[%clk
0:02:37.7]} 10. O-O-O {[%clk 0:02:55.3]} 10... Ne7 {[%clk 0:02:33.4]} 11. Nc4
{[%clk 0:02:20.6]} 11... Be6 {[%clk 0:02:06.4]} 12. Be2 {[%clk 0:01:57]} 12...
Nd7 {[%clk 0:01:29.1]} 13. Nd4 {[%clk 0:01:56.7]} 13... Bf7 {[%clk 0:01:20.1]}
14. Bg4 {[%clk 0:01:55.3]} 14... Rad8 {[%clk 0:01:14.9]} 15. Be6 {[%clk
0:01:40.3]} 15... Be8 {[%clk 0:01:12.3]} 16. f4 {[%clk 0:01:29]} 16... Nf8
{[%clk 0:00:18.4]} 17. fxe5 {[%clk 0:01:25.5]} 17... f5 {[%clk 0:00:19]} 18. Bf7
{[%clk 0:00:54.2]} 18... Bxf7 {[%clk 0:00:09]} 19. e6+ {[%clk 0:00:54.1]} 19...
Kc8 {[%clk 0:00:09.5]} 20. exf7 {[%clk 0:00:49.3]} 20... Bxd4 {[%clk 0:00:09.5]}
21. exd4 {[%clk 0:00:48.3]} 21... Nd7 {[%clk 0:00:08.3]} 22. Nd6+ {[%clk
0:00:47.4]} 22... Kc7 {[%clk 0:00:08.8]} 23. Nxf5+ {[%clk 0:00:47.1]} 1-0

[Event "Late-Titled-Tuesday-Blitz-February-20-2024"]
[Site "Chess.com"]
[Date "2024.02.20"]
[Round "10"]
[White "DeArron_Fox"]
[Black "Taran2004"]
[Result "1-0"]
[WhiteElo "2516"]
[BlackElo "2431"]
[TimeControl "180+1"]
[EndTime "15:53:49 PST"]
[Termination "DeArron_Fox won by checkmate"]

1. d4 {[%clk 0:03:00.9]} 1... Nf6 {[%clk 0:02:57.8]} 2. c4 {[%clk 0:03:00]} 2...
c5 {[%clk 0:02:58]} 3. d5 {[%clk 0:02:59.9]} 3... b5 {[%clk 0:02:58.6]} 4. cxb5
{[%clk 0:03:00.8]} 4... a6 {[%clk 0:02:59]} 5. bxa6 {[%clk 0:02:18.1]} 5... d6
{[%clk 0:02:57.3]} 6. Nc3 {[%clk 0:02:18.1]} 6... Bxa6 {[%clk 0:02:57.3]} 7. e4
{[%clk 0:02:15.5]} 7... Bxf1 {[%clk 0:02:58.2]} 8. Kxf1 {[%clk 0:02:14.2]} 8...
g6 {[%clk 0:02:58.8]} 9. g3 {[%clk 0:02:14.7]} 9... Bg7 {[%clk 0:02:58.7]} 10.
Kg2 {[%clk 0:02:15.2]} 10... O-O {[%clk 0:02:58.8]} 11. Nf3 {[%clk 0:02:15.7]}
11... Nbd7 {[%clk 0:02:56.8]} 12. a4 {[%clk 0:02:14]} 12... Qb6 {[%clk
0:02:56.4]} 13. Ra3 {[%clk 0:02:12.2]} 13... Rfb8 {[%clk 0:02:55.6]} 14. Qc2
{[%clk 0:02:11.3]} 14... Ng4 {[%clk 0:02:54.1]} 15. h3 {[%clk 0:02:11]} 15...
Nge5 {[%clk 0:02:54.2]} 16. Nd2 {[%clk 0:02:11.6]} 16... Qa6 {[%clk 0:02:51.7]}
17. Nb5 {[%clk 0:02:08.6]} 17... Nb6 {[%clk 0:02:51.3]} 18. Nc7 {[%clk
0:02:01.8]} 18... Qe2 {[%clk 0:02:45.3]} 19. Re3 {[%clk 0:01:35.9]} 19... Qh5
{[%clk 0:02:44.6]} 20. Nxa8 {[%clk 0:01:28.6]} 20... Rxa8 {[%clk 0:02:45.5]} 21.
b3 {[%clk 0:00:56.1]} 21... Bh6 {[%clk 0:02:43.8]} 22. f4 {[%clk 0:00:50.5]}
22... Ned7 {[%clk 0:02:41]} 23. Qd1 {[%clk 0:00:49.3]} 23... Qxd1 {[%clk
0:02:39.5]} 24. Rxd1 {[%clk 0:00:50.2]} 24... Bg7 {[%clk 0:02:39.3]} 25. Ba3
{[%clk 0:00:28]} 25... Bd4 {[%clk 0:02:29.3]} 26. Re2 {[%clk 0:00:17.2]} 26...
h5 {[%clk 0:02:27]} 27. Rc1 {[%clk 0:00:13.3]} 27... c4 {[%clk 0:02:22.4]} 28.
Nxc4 {[%clk 0:00:12.1]} 28... Nxc4 {[%clk 0:02:17.7]} 29. Rxc4 {[%clk 0:00:13]}
29... Bc5 {[%clk 0:02:18.2]} 30. Bxc5 {[%clk 0:00:10.8]} 30... Nxc5 {[%clk
0:02:19.1]} 31. b4 {[%clk 0:00:10]} 31... Rxa4 {[%clk 0:02:12.6]} 32. Rec2
{[%clk 0:00:03.9]} 32... Nd3 {[%clk 0:02:12.3]} 33. b5 {[%clk 0:00:02]} 33...
Ra1 {[%clk 0:02:07.4]} 34. Rc8+ {[%clk 0:00:02.2]} 34... Kg7 {[%clk 0:02:07.4]}
35. Re2 {[%clk 0:00:02.8]} 35... Rb1 {[%clk 0:02:07.1]} 36. Rc7 {[%clk
0:00:02.7]} 36... Kf6 {[%clk 0:02:04.6]} 37. e5+ {[%clk 0:00:02.3]} 37... dxe5
{[%clk 0:02:04.3]} 38. fxe5+ {[%clk 0:00:03.2]} 38... Kf5 {[%clk 0:02:01.4]} 39.
Rxe7 {[%clk 0:00:02.4]} 39... Rxb5 {[%clk 0:02:01.8]} 40. Rxf7+ {[%clk
0:00:02.3]} 40... Kg5 {[%clk 0:02:01]} 41. e6 {[%clk 0:00:02.8]} 41... Rxd5
{[%clk 0:01:52]} 42. h4+ {[%clk 0:00:03.2]} 42... Kg4 {[%clk 0:01:51.8]} 43. e7
{[%clk 0:00:04.1]} 43... Ne1+ {[%clk 0:01:46.7]} 44. Rxe1 {[%clk 0:00:04]} 44...
Rd2+ {[%clk 0:01:47.4]} 45. Kh1 {[%clk 0:00:04]} 45... Kxg3 {[%clk 0:01:43.8]}
46. Re3+ {[%clk 0:00:04.5]} 46... Kxh4 {[%clk 0:01:41.2]} 47. e8=Q {[%clk
0:00:04.8]} 47... Rd1+ {[%clk 0:01:41.6]} 48. Kg2 {[%clk 0:00:04.8]} 48... g5
{[%clk 0:01:41.6]} 49. Qe4+ {[%clk 0:00:03.8]} 49... g4 {[%clk 0:01:42.1]} 50.
Qe7# {[%clk 0:00:04.1]} 1-0

[Event "Late-Titled-Tuesday-Blitz-February-20-2024"]
[Site "Chess.com"]
[Date "2024.02.20"]
[Round "10"]
[White "DrVelja"]
[Black "LiemLe"]
[Result "1-0"]
[WhiteElo "3007"]
[BlackElo "3040"]
[TimeControl "180+1"]
[EndTime "15:53:50 PST"]
[Termination "DrVelja won by checkmate"]

1. e4 {[%clk 0:03:00.9]} 1... c5 {[%clk 0:02:59.9]} 2. Nf3 {[%clk 0:03:01.2]}
2... Nc6 {[%clk 0:03:00.6]} 3. Bb5 {[%clk 0:03:00.6]} 3... g6 {[%clk 0:03:01.1]}
4. O-O {[%clk 0:02:59.5]} 4... Bg7 {[%clk 0:03:01.6]} 5. Bxc6 {[%clk 0:03:00.1]}
5... bxc6 {[%clk 0:03:00.6]} 6. Re1 {[%clk 0:03:00.3]} 6... Qc7 {[%clk
0:03:00.4]} 7. d3 {[%clk 0:02:58.5]} 7... e5 {[%clk 0:02:40.1]} 8. c3 {[%clk
0:02:57.9]} 8... Ne7 {[%clk 0:02:32.5]} 9. Be3 {[%clk 0:02:50.6]} 9... d6 {[%clk
0:02:29]} 10. d4 {[%clk 0:02:50.7]} 10... cxd4 {[%clk 0:02:14.4]} 11. cxd4
{[%clk 0:02:51.6]} 11... Bg4 {[%clk 0:02:14.5]} 12. dxe5 {[%clk 0:02:49.4]}
12... Bxe5 {[%clk 0:02:15.4]} 13. Nc3 {[%clk 0:02:46.7]} 13... Rb8 {[%clk
0:02:10.5]} 14. h3 {[%clk 0:02:17.9]} 14... Bxf3 {[%clk 0:02:09.3]} 15. Qxf3
{[%clk 0:02:18.8]} 15... Rxb2 {[%clk 0:02:07.2]} 16. Bh6 {[%clk 0:02:18.8]}
16... f6 {[%clk 0:01:34.4]} 17. Rac1 {[%clk 0:02:04.3]} 17... Kf7 {[%clk
0:01:29.8]} 18. Qd3 {[%clk 0:02:01.9]} 18... g5 {[%clk 0:01:20.5]} 19. h4 {[%clk
0:01:40.7]} 19... Qb6 {[%clk 0:01:02]} 20. Ne2 {[%clk 0:01:26.3]} 20... Rg8
{[%clk 0:00:38.5]} 21. hxg5 {[%clk 0:01:21.6]} 21... fxg5 {[%clk 0:00:33.6]} 22.
Kh1 {[%clk 0:01:08.2]} 22... Rg6 {[%clk 0:00:33.2]} 23. Qh3 {[%clk 0:01:08.7]}
23... Qa6 {[%clk 0:00:24]} 24. f4 {[%clk 0:01:01.2]} 24... gxf4 {[%clk
0:00:16.2]} 25. Nxf4 {[%clk 0:00:54.8]} 25... Bxf4 {[%clk 0:00:15.6]} 26. Rf1
{[%clk 0:00:55.3]} 26... Ke8 {[%clk 0:00:10.1]} 27. Rxf4 {[%clk 0:00:54.5]}
27... Rg8 {[%clk 0:00:07.5]} 28. Rcf1 {[%clk 0:00:54.9]} 28... Rbxg2 {[%clk
0:00:06.6]} 29. Rf8+ {[%clk 0:00:54.5]} 29... Rxf8 {[%clk 0:00:05.6]} 30. Rxf8#
{[%clk 0:00:55.4]} 1-0

[Event "Late-Titled-Tuesday-Blitz-February-20-2024"]
[Site "Chess.com"]
[Date "2024.02.20"]
[Round "10"]
[White "K_A_S_T_O_R"]
[Black "NLLO777"]
[Result "1-0"]
[WhiteElo "2793"]
[BlackElo "2544"]
[TimeControl "180+1"]
[EndTime "15:53:50 PST"]
[Termination "K_A_S_T_O_R won by checkmate"]

1. e4 {[%clk 0:02:57.4]} 1... c5 {[%clk 0:02:57.6]} 2. Nf3 {[%clk 0:02:55.7]}
2... d6 {[%clk 0:02:57.9]} 3. d4 {[%clk 0:02:55.3]} 3... cxd4 {[%clk 0:02:58.8]}
4. Nxd4 {[%clk 0:02:55.8]} 4... Nf6 {[%clk 0:02:59.5]} 5. Nc3 {[%clk 0:02:56]}
5... a6 {[%clk 0:03:00.1]} 6. Bg5 {[%clk 0:02:55.9]} 6... Nbd7 {[%clk
0:02:59.8]} 7. Bc4 {[%clk 0:02:55.7]} 7... e6 {[%clk 0:02:59.1]} 8. O-O {[%clk
0:02:54.7]} 8... Qb6 {[%clk 0:02:57.8]} 9. Bb3 {[%clk 0:02:43.8]} 9... Be7
{[%clk 0:02:57.1]} 10. Qd2 {[%clk 0:02:42.5]} 10... Nc5 {[%clk 0:02:56]} 11.
Rfe1 {[%clk 0:02:42.5]} 11... Qc7 {[%clk 0:02:52.9]} 12. Rad1 {[%clk 0:02:39.6]}
12... O-O {[%clk 0:02:50.9]} 13. f3 {[%clk 0:02:37]} 13... b5 {[%clk 0:02:50.4]}
14. a3 {[%clk 0:02:36.8]} 14... Nxb3 {[%clk 0:02:44.5]} 15. cxb3 {[%clk
0:02:36.4]} 15... Bd7 {[%clk 0:02:33.7]} 16. b4 {[%clk 0:02:31.8]} 16... Rac8
{[%clk 0:02:30.2]} 17. Rc1 {[%clk 0:02:30.8]} 17... Qb8 {[%clk 0:02:22.9]} 18.
Nb3 {[%clk 0:02:30.1]} 18... h6 {[%clk 0:02:20]} 19. Bh4 {[%clk 0:02:18.1]}
19... Rc7 {[%clk 0:02:11.1]} 20. Bg3 {[%clk 0:02:13]} 20... e5 {[%clk
0:02:07.3]} 21. Bh4 {[%clk 0:02:11.6]} 21... Be6 {[%clk 0:01:58.4]} 22. Na5
{[%clk 0:02:09.6]} 22... Ng4 {[%clk 0:01:32.4]} 23. Bxe7 {[%clk 0:02:05.8]}
23... Qb6+ {[%clk 0:01:29.8]} 24. Kf1 {[%clk 0:02:01.3]} 24... Nxh2+ {[%clk
0:01:18.6]} 25. Ke2 {[%clk 0:02:01.6]} 25... Rxe7 {[%clk 0:01:14.4]} 26. Rh1
{[%clk 0:01:59.9]} 26... Ng4 {[%clk 0:01:04.1]} 27. fxg4 {[%clk 0:01:59.7]}
27... Bxg4+ {[%clk 0:01:05]} 28. Ke1 {[%clk 0:01:59.7]} 28... Re6 {[%clk
0:00:38.6]} 29. Nd5 {[%clk 0:01:57.7]} 29... Qb8 {[%clk 0:00:33.1]} 30. Nc6
{[%clk 0:01:55.9]} 30... Qb7 {[%clk 0:00:30.6]} 31. Rc3 {[%clk 0:01:53.6]} 31...
f5 {[%clk 0:00:22.4]} 32. exf5 {[%clk 0:01:48.6]} 32... Bxf5 {[%clk 0:00:21.5]}
33. Qe3 {[%clk 0:01:39.9]} 33... Rc8 {[%clk 0:00:15.3]} 34. Qf3 {[%clk
0:01:39.2]} 34... Bg6 {[%clk 0:00:06.9]} 35. Nce7+ {[%clk 0:01:36.1]} 35... Rxe7
{[%clk 0:00:07.4]} 36. Rxc8+ {[%clk 0:01:32.9]} 36... Kh7 {[%clk 0:00:05.8]} 37.
Nxe7 {[%clk 0:01:25.5]} 37... Qxe7 {[%clk 0:00:06.7]} 38. Qf8 {[%clk 0:01:23.9]}
38... Qg5 {[%clk 0:00:07.1]} 39. Qh8# {[%clk 0:01:23.6]} 1-0